{"text_format":"3","workbook":"xlsx","n_sheets":1,"sheets":["1"],"not_rendered":{"defined_names":1},"read":"whole","date_system":"1900"}

{"sheet":"1","index":0,"n_rows":141,"n_cols":13,"rows_kept":141,"merged":[[0,0,0,12],[1,0,2,0],[1,1,2,1],[1,2,2,2],[1,3,2,3],[1,4,2,4],[1,5,1,7],[1,8,1,11],[1,12,2,12]]}
["附件：2021年兴安盟教育系统事业单位公开招聘三科及其他教师计划表"]
["序号","招聘单位","单位性质","招聘岗位","招聘人数","其中",null,null,"具体条件",{"$nulls":3},"备注"]
[{"$nulls":5},"一般岗位","项目岗位","蒙汉兼通","学历","专业","职业资格或工作经历","其他"]
[1,"乌兰浩特第一中学","全额拨款事业单位","语文教师",{"$f":"SUM(F4:H4)","v":3},3,null,null,"教育部直属师范院校全日制本科学历，或双一流大学全日制硕士研究生及以上学历","语文及相关专业","具有相应的教师资格证"]
[2,"乌兰浩特第一中学","全额拨款事业单位","物理教师",5,5,null,null,"教育部直属师范院校全日制本科学历，或双一流大学全日制硕士研究生及以上学历","物理及相关专业","具有相应的教师资格证"]
[3,"乌兰浩特第一中学","全额拨款事业单位","生物教师",2,2,null,null,"教育部直属师范院校全日制本科学历，或双一流大学全日制硕士研究生及以上学历","生物及相关专业","具有相应的教师资格证"]
[4,"乌兰浩特第一中学","全额拨款事业单位","地理教师",2,2,null,null,"教育部直属师范院校全日制本科学历，或双一流大学全日制硕士研究生及以上学历","地理及相关专业","具有相应的教师资格证"]
[5,"乌兰浩特第一中学","全额拨款事业单位","英语教师",2,2,null,null,"教育部直属师范院校全日制本科学历，或双一流大学全日制硕士研究生及以上学历","英语及相关专业","具有相应的教师资格证"]
[6,"乌兰浩特第一中学","全额拨款事业单位","数学教师",2,2,null,null,"教育部直属师范院校全日制本科学历，或双一流大学全日制硕士研究生及以上学历","数学及相关专业","具有相应的教师资格证"]
[7,"乌兰浩特第二中学","全额拨款事业单位","语文教师",4,4,null,null,"国家承认全日制普通高等院校本科及以上毕业学历","语文及相关专业","具有相应的教师资格证"]
[8,"乌兰浩特第二中学","全额拨款事业单位","历史教师",1,1,null,null,"国家承认全日制普通高等院校本科及以上毕业学历","历史及相关专业","具有相应的教师资格证"]
[9,"乌兰浩特第二中学","全额拨款事业单位","化学教师",1,null,null,1,"国家承认全日制普通高等院校本科及以上毕业学历","化学及相关专业","具有相应的教师资格证"]
[10,"乌兰浩特第二中学","全额拨款事业单位","生物教师",{"$f":"SUM(F13:H13)","v":2},null,null,2,"国家承认全日制普通高等院校本科及以上毕业学历","生物及相关专业","具有相应的教师资格证"]
[11,"乌兰浩特第二中学","全额拨款事业单位","蒙语文教师",{"$f":"SUM(F14:H14)","v":3},null,null,3,"国家承认全日制普通高等院校本科及以上毕业学历","蒙语文及相关专业","具有相应的教师资格证"]
[12,"兴安盟高级技工学校","全额拨款事业单位","教辅人员（一）",{"$f":"SUM(F15:H15)","v":2},null,2,null,"国家承认全日制普通高等院校本科及以上毕业学历","护理学及相关专业"]
[13,"兴安盟高级技工学校","全额拨款事业单位","教辅人员（二）",1,null,1,null,"国家承认全日制普通高等院校本科及以上毕业学历","电气工程及其自动化、自动化、应用电子技术教育及相关专业"]
[14,"兴安盟高级技工学校","全额拨款事业单位","教辅人员（三）",1,null,1,null,"国家承认全日制普通高等院校本科及以上毕业学历","电子商务及相关专业"]
[15,"兴安盟高级技工学校","全额拨款事业单位","学前教育教师",1,null,1,null,"国家承认全日制普通高等院校本科及以上毕业学历","学前教育及相关专业","具有相应的教师资格证"]
[16,"兴安盟高级技工学校","全额拨款事业单位","思想政治教师",1,null,1,null,"国家承认全日制普通高等院校本科及以上毕业学历","思想政治教育及相关专业","具有相应的教师资格证"]
[17,"兴安盟高级技工学校","全额拨款事业单位","历史教师",1,1,null,null,"国家承认全日制普通高等院校本科及以上毕业学历","历史及相关专业","具有相应的教师资格证"]
[18,"兴安盟高级技工学校","全额拨款事业单位","体育教师",1,null,null,1,"国家承认全日制普通高等院校本科及以上毕业学历","体育及相关专业","具有相应的教师资格证"]
[19,"乌兰浩特朝鲜族学校","全额拨款事业单位","高中物理教师",1,1,null,null,"国家承认全日制普通高等院校本科及以上毕业学历","物理及相关专业","具有相应的教师资格证"]
[20,"乌兰浩特朝鲜族学校","全额拨款事业单位","高中生物教师",1,1,null,null,"国家承认全日制普通高等院校本科及以上毕业学历","生物及相关专业","具有相应的教师资格证"]
[21,"乌兰浩特朝鲜族学校","全额拨款事业单位","高中历史教师",1,1,null,null,"国家承认全日制普通高等院校本科及以上毕业学历","历史及相关专业","具有相应的教师资格证"]
[22,"乌兰浩特朝鲜族学校","全额拨款事业单位","初中朝鲜语文教师（朝鲜语授课）",1,null,1,null,"国家承认全日制普通高等院校本科及以上毕业学历","朝鲜语文及相关专业","具有相应的教师资格证","精通朝鲜语"]
[23,"乌兰浩特朝鲜族学校","全额拨款事业单位","初中数学教师",1,1,null,null,"国家承认全日制普通高等院校本科及以上毕业学历","数学及相关专业","具有相应的教师资格证"]
[24,"乌兰浩特朝鲜族学校","全额拨款事业单位","初中道德与法治教师",1,1,null,null,"国家承认全日制普通高等院校本科及以上毕业学历","思想政治教育及相关专业","具有相应的教师资格证"]
[25,"乌兰浩特朝鲜族学校","全额拨款事业单位","小学语文教师",1,1,null,null,"国家承认全日制普通高等院校本科及以上毕业学历","语文及相关专业","具有相应的教师资格证"]
[26,"乌兰浩特朝鲜族学校","全额拨款事业单位","幼儿教育教师（朝鲜语授课）",1,null,1,null,"国家承认全日制普通高等院校本科及以上毕业学历","学前教育及相关专业","具有相应的教师资格证","精通朝鲜语"]
[27,"乌兰浩特蒙古族初级中学","全额拨款事业单位","语文教师",1,1,null,null,"国家承认全日制普通高等院校本科及以上毕业学历","语文及相关专业","具有相应的教师资格证"]
[28,"乌兰浩特蒙古族初级中学","全额拨款事业单位","道德与法治教师",2,1,1,null,"国家承认全日制普通高等院校本科及以上毕业学历","思想政治教育及相关专业","具有相应的教师资格证"]
[29,"乌兰浩特蒙古族初级中学","全额拨款事业单位","历史教师",1,1,null,null,"国家承认全日制普通高等院校本科及以上毕业学历","历史及相关专业","具有相应的教师资格证"]
[30,"乌兰浩特蒙古族小学","全额拨款事业单位","道德与法治教师",1,1,null,null,"国家承认全日制普通高等院校本科及以上毕业学历","思想政治教育及相关专业","具有相应的教师资格证"]
[31,"乌兰浩特蒙古族小学","全额拨款事业单位","蒙语文教师",2,null,null,2,"国家承认全日制普通高等院校本科及以上毕业学历","蒙语文及相关专业","具有相应的教师资格证"]
[32,"乌兰浩特蒙古族小学","全额拨款事业单位","足球教师",{"$f":"SUM(F35:H35)","v":1},null,null,1,"国家承认全日制普通高等院校本科及以上毕业学历","足球及相关专业","具有相应的教师资格证和D级及以上足球教练员证书"]
[33,"乌兰浩特蒙古族小学","全额拨款事业单位","语文教师",2,1,1,null,"国家承认全日制普通高等院校本科及以上毕业学历","语文及相关专业","具有相应的教师资格证"]
[34,"乌兰浩特市第二职业中等专业学校","全额拨款事业单位","建筑学教师",1,null,1,null,"国家承认全日制普通高等院校本科及以上毕业学历","建筑学及相关专业","具有相应的教师资格证"]
[35,"乌兰浩特市第二职业中等专业学校","全额拨款事业单位","护理学教师",2,null,2,null,"国家承认全日制普通高等院校本科及以上毕业学历","护理学及相关专业","具有相应的教师资格证"]
[36,"乌兰浩特市第二职业中等专业学校","全额拨款事业单位","航空服务教师",1,null,1,null,"国家承认全日制普通高等院校本科及以上毕业学历","航空服务学、旅游服务学及相关专业","具有相应的教师资格证"]
[37,"乌兰浩特市高中","全额拨款事业单位","历史教师",2,2,null,null,"国家承认全日制普通高等院校本科及以上毕业学历","历史及相关专业","具有相应教师资格证书",null,"乌兰浩特市第四中学、第十五中学"]
[38,"乌兰浩特市高中","全额拨款事业单位","语文教师",4,4,null,null,"国家承认全日制普通高等院校本科及以上毕业学历","语文及相关专业","具有相应的教师资格证",null,"乌兰浩特市第四中学、第十五中学"]
[39,"乌兰浩特市高中","全额拨款事业单位","思想政治教师",2,2,null,null,"国家承认全日制普通高等院校本科及以上毕业学历","思想政治教育及相关专业","具有相应的教师资格证",null,"乌兰浩特市第四中学、第十五中学"]
[40,"乌兰浩特市高中","全额拨款事业单位","生物教师",2,2,null,null,"国家承认全日制普通高等院校本科及以上毕业学历","生物及相关专业","具有相应教师资格证书",null,"乌兰浩特市第四中学、第十五中学"]
[41,"乌兰浩特市第四中学","全额拨款事业单位","信息技术教师",1,null,1,null,"国家承认全日制普通高等院校本科及以上毕业学历","信息技术及相关专业","具有相应的教师资格证"]
[42,"乌兰浩特市第四中学","全额拨款事业单位","心理健康教师",1,null,1,null,"国家承认全日制普通高等院校本科及以上毕业学历","心理学及相关专业","具有相应的教师资格证"]
[43,"乌兰浩特第十五中学","全额拨款事业单位","数学教师",3,2,1,null,"国家承认全日制普通高等院校本科及以上毕业学历","数学及相关专业","具有相应的教师资格证"]
[44,"乌兰浩特第十五中学","全额拨款事业单位","日语教师",1,null,null,1,"国家承认全日制普通高等院校本科及以上毕业学历","日语及相关专业","具有相应的教师资格证"]
[45,"乌兰浩特第十五中学","全额拨款事业单位","化学教师",1,1,null,null,"国家承认全日制普通高等院校本科及以上毕业学历","化学及相关专业","具有相应的教师资格证"]
[46,"乌兰浩特第十五中学","全额拨款事业单位","地理教师",1,1,null,null,"国家承认全日制普通高等院校本科及以上毕业学历","地理及相关专业","具有相应的教师资格证"]
[47,"乌兰浩特市初中","全额拨款事业单位","体育教师",2,null,2,null,"国家承认全日制普通高等院校本科及以上毕业学历","体育及相关专业","具有相应教师资格证书",null,"乌兰浩特市第十二中学、白鹭学校"]
[48,"乌兰浩特市初中","全额拨款事业单位","数学教师",3,3,null,null,"国家承认全日制普通高等院校本科及以上毕业学历","数学及相关专业","具有相应教师资格证书",null,"乌兰浩特市第七中学、第八中学"]
[49,"乌兰浩特市第七中学","全额拨款事业单位","物理教师",1,1,null,null,"国家承认全日制普通高等院校本科及以上毕业学历","物理及相关专业","具有相应教师资格证书"]
[50,"乌兰浩特市第八中学","全额拨款事业单位","地理教师",1,1,null,null,"国家承认全日制普通高等院校本科及以上毕业学历","地理及相关专业","具有相应教师资格证书"]
[51,"乌兰浩特市第八中学","全额拨款事业单位","生物教师",1,1,null,null,"国家承认全日制普通高等院校本科及以上毕业学历","生物及相关专业","具有相应教师资格证书"]
[52,"乌兰浩特市第十中学","全额拨款事业单位","道德与法治教师",1,1,null,null,"国家承认全日制普通高等院校本科及以上毕业学历","思想政治教育及相关专业","具有相应教师资格证书"]
[53,"乌兰浩特市白鹭学校","全额拨款事业单位","初中信息技术教师",2,null,2,null,"国家承认全日制普通高等院校本科及以上毕业学历","信息技术及相关专业","具有相应教师资格证书"]
[54,"乌兰浩特市小学","全额拨款事业单位","语文教师（一）",11,8,3,null,"国家承认全日制普通高等院校本科及以上毕业学历","语文及相关专业","具有相应教师资格证书",null,"乌兰浩特市兴安第一小学、胜利第一小学、教师进修学校附属五一小学、都林第二小学、白鹭学校"]
[55,"乌兰浩特市小学","全额拨款事业单位","语文教师（二）",10,7,3,null,"国家承认全日制普通高等院校本科及以上毕业学历","语文及相关专业","具有相应教师资格证书",null,"乌兰浩特市兴安第二小学、爱国第一小学、和平第三小学、永联第一小学"]
[56,"乌兰浩特市小学","全额拨款事业单位","数学教师（一）",8,6,2,null,"国家承认全日制普通高等院校本科及以上毕业学历","数学及相关专业","具有相应教师资格证书",null,"乌兰浩特市兴安第一小学、教师进修学校附属五一小学、永联第一小学、都林第二小学"]
[57,"乌兰浩特市小学","全额拨款事业单位","数学教师（二）",8,7,1,null,"国家承认全日制普通高等院校本科及以上毕业学历","数学及相关专业","具有相应教师资格证书",null,"乌兰浩特市兴安第二小学、胜利第一小学、白鹭学校、和平第三小学"]
[58,"乌兰浩特市小学","全额拨款事业单位","体育教师",6,null,6,null,"国家承认全日制普通高等院校本科及以上毕业学历","体育及相关专业","具有相应教师资格证书",null,"乌兰浩特市兴安第一小学、红云希望小学、和平第三小学、爱国第一小学、都林第二小学"]
[59,"乌兰浩特市小学","全额拨款事业单位","信息技术教师",3,null,3,null,"国家承认全日制普通高等院校本科及以上毕业学历","信息技术及相关专业","具有相应教师资格证书",null,"乌兰浩特市兴安第二小学、红云希望小学、和平第三小学"]
[60,"乌兰浩特市小学","全额拨款事业单位","音乐教师",4,null,3,1,"国家承认全日制普通高等院校本科及以上毕业学历","音乐及相关专业","具有相应教师资格证书",null,"乌兰浩特市和平第三小学、爱国第一小学、爱国第二小学、都林第二小学"]
[61,"乌兰浩特市小学","全额拨款事业单位","美术教师",2,null,2,null,"国家承认全日制普通高等院校本科及以上毕业学历","美术及相关专业","具有相应教师资格证书",null,"乌兰浩特市兴安第二小学、都林第二小学"]
[62,"乌兰浩特市爱国第一小学","全额拨款事业单位","英语教师",1,1,null,null,"国家承认全日制普通高等院校本科及以上毕业学历","英语及相关专业","具有相应教师资格证书"]
[63,"乌兰浩特市都林第二小学","全额拨款事业单位","科学教师",1,null,1,null,"国家承认全日制普通高等院校本科及以上毕业学历","科学及相关专业","具有相应教师资格证书"]
[64,"乌兰浩特市义勒力特中心小学","全额拨款事业单位","道德与法治教师",{"$f":"SUM(F67:H67)","v":1},1,null,null,"国家承认全日制普通高等院校本科及以上毕业学历","思想政治教育及相关专业","具有相应教师资格证书"]
[65,"阿尔山市第一中学","全额拨款事业单位","高中思想政治教师",2,2,null,null,"国家承认全日制普通高等院校本科及以上毕业学历","思想政治教育及相关专业","具有相应教师资格证书","最低服务年限五年"]
[66,"阿尔山市第一中学","全额拨款事业单位","高中生物实验教师",1,1,null,null,"国家承认全日制普通高等院校本科及以上毕业学历","生物及相关专业","具有相应教师资格证书","最低服务年限五年"]
[67,"阿尔山市第一中学","全额拨款事业单位","高中化学实验教师",1,1,null,null,"国家承认全日制普通高等院校本科及以上毕业学历","化学及相关专业","具有相应教师资格证书","最低服务年限五年"]
[68,"阿尔山市第一中学","全额拨款事业单位","高中美术教师",2,2,null,null,"国家承认全日制普通高等院校本科及以上毕业学历","美术及相关专业","具有相应教师资格证书","最低服务年限五年"]
[69,"阿尔山市第一中学","全额拨款事业单位","高中旅游管理教师",2,2,null,null,"国家承认全日制普通高等院校本科及以上毕业学历","旅游管理与服务及相关专业","具有相应教师资格证书","最低服务年限五年"]
[70,"阿尔山市第一中学","全额拨款事业单位","高中足球教师",1,null,null,1,"国家承认全日制普通高等院校本科及以上毕业学历","体育教育（足球方向）","具有相应教师资格证书","最低服务年限五年"]
[71,"阿尔山市第一中学","全额拨款事业单位","高中滑冰教师",1,null,1,null,"国家承认全日制普通高等院校本科及以上毕业学历","体育教育（冰雪方向）","具有相应教师资格证书","最低服务年限五年"]
[72,"阿尔山市第一中学","全额拨款事业单位","高中历史教师",1,1,null,null,"国家承认全日制普通高等院校本科及以上毕业学历","历史及相关专业","具有相应教师资格证书","最低服务年限五年"]
[73,"阿尔山市第一中学","全额拨款事业单位","高中信息技术教师",2,null,null,2,"国家承认全日制普通高等院校本科及以上毕业学历","信息技术及相关专业","具有相应教师资格证书","最低服务年限五年"]
[74,"阿尔山市第一中学","全额拨款事业单位","高中声乐教师",1,null,1,null,"国家承认全日制普通高等院校本科及以上毕业学历","音乐学及相关专业（声乐方向）","具有相应教师资格证书","最低服务年限五年"]
[75,"阿尔山市第一中学","全额拨款事业单位","高中舞蹈教师",1,null,1,null,"国家承认全日制普通高等院校本科及以上毕业学历","舞蹈及相关专业","具有相应教师资格证书","最低服务年限五年"]
[76,"阿尔山市第一中学","全额拨款事业单位","高中数学教师",1,1,null,null,"国家承认全日制普通高等院校本科及以上毕业学历","数学及相关专业","具有相应教师资格证书","最低服务年限五年"]
[77,"阿尔山市小学","全额拨款事业单位","语文教师",3,2,1,null,"国家承认全日制普通高等院校专科及以上毕业学历","语文及相关专业","具有相应教师资格证书","限阿尔山市户籍或生源、最低服务年限五年","阿尔山市第一民族小学、第二小学、西口小学"]
[78,"阿尔山市小学","全额拨款事业单位","数学教师",3,2,1,null,"国家承认全日制普通高等院校专科及以上毕业学历","数学及相关专业","具有相应教师资格证书","限阿尔山市户籍或生源、最低服务年限五年","阿尔山市第一民族小学、第二小学、西口小学"]
[79,"阿尔山市第一民族小学","全额拨款事业单位","舞蹈教师",1,null,1,null,"国家承认全日制普通高等院校本科及以上毕业学历","舞蹈及相关专业","具有相应教师资格证书","限阿尔山市户籍或生源、最低服务年限五年"]
[80,"阿尔山市第二小学","全额拨款事业单位","体育教师",1,null,1,null,"国家承认全日制普通高等院校本科及以上毕业学历","体育教育（田径方向）","具有相应教师资格证书","最低服务年限五年"]
[81,"阿尔山市第二小学","全额拨款事业单位","滑冰教师",1,null,1,null,"国家承认全日制普通高等院校本科及以上毕业学历","体育教育（冰雪方向）","具有相应教师资格证书","最低服务年限五年"]
[82,"阿尔山市第二小学","全额拨款事业单位","美术教师",1,null,1,null,"国家承认全日制普通高等院校本科及以上毕业学历","美术及相关专业","具有相应教师资格证书","最低服务年限五年"]
[83,"阿尔山市第二小学","全额拨款事业单位","计算机教师",1,null,1,null,"国家承认全日制普通高等院校专科及以上毕业学历","信息技术及相关专业","具有相应教师资格证书","限阿尔山市户籍或生源、最低服务年限五年"]
[84,"阿尔山市第二小学","全额拨款事业单位","心理健康教师",1,null,1,null,"国家承认全日制普通高等院校本科及以上毕业学历","心理学及相关专业","具有相应教师资格证书","最低服务年限五年"]
[85,"阿尔山市五岔沟学校","全额拨款事业单位","初中语文教师",1,1,null,null,"国家承认全日制普通高等院校本科及以上毕业学历","语文及相关专业","具有相应教师资格证书","最低服务年限五年"]
[86,"阿尔山市西口小学","全额拨款事业单位","英语教师",1,1,null,null,"国家承认全日制普通高等院校专科及以上毕业学历","英语及相关专业","具有相应教师资格证书","限阿尔山市户籍或生源、最低服务年限五年"]
[87,"阿尔山市第二幼儿园","差额拔款事业单位","幼儿园教师",1,null,1,null,"国家承认全日制普通高等院校本科及以上毕业学历","学前教育及相关专业","具有相应教师资格证书","最低服务年限五年"]
[88,"阿尔山市第三幼儿园","差额拔款事业单位","幼儿园教师",1,null,1,null,"国家承认全日制普通高等院校本科及以上毕业学历","学前教育及相关专业","具有幼儿园教师资格证","限阿尔山市户籍或生源、最低服务年限五年"]
[89,"科右前旗小学","全额拨款事业单位","数学教师",9,5,4,null,"国家承认全日制普通高等院校本科及以上毕业学历","师范类数学及相关专业","具有相应教师资格证书"]
[90,"科右前旗小学","全额拨款事业单位","语文教师",12,7,5,null,"国家承认全日制普通高等院校本科及以上毕业学历","师范类语文及相关专业","具有相应教师资格证书"]
[91,"科右前旗小学","全额拨款事业单位","英语教师",4,2,2,null,"国家承认全日制普通高等院校本科及以上毕业学历","师范类英语及相关专业","具有相应教师资格证书"]
[92,"科右前旗小学","全额拨款事业单位","道德与法治教师",12,8,4,null,"国家承认全日制普通高等院校本科及以上毕业学历","师范类思想政治教育及相关专业","具有相应教师资格证书"]
[93,"科右前旗小学","全额拨款事业单位","体育教师",3,null,1,2,"国家承认全日制普通高等院校本科及以上毕业学历","师范类体育及相关专业","具有相应教师资格证书"]
[94,"科右前旗小学","全额拨款事业单位","音乐教师",2,null,1,1,"国家承认全日制普通高等院校本科及以上毕业学历","师范类音乐及相关专业","具有相应教师资格证书"]
[95,"科右前旗小学","全额拨款事业单位","美术教师",2,null,1,1,"国家承认全日制普通高等院校本科及以上毕业学历","师范类美术及相关专业","具有相应教师资格证书"]
[96,"扎赉特旗中等职业学校","全额拨款事业单位","语文教师",{"$f":"SUM(F99:H99)","v":3},2,1,null,"国家承认全日制普通高等院校本科及以上毕业学历","语言及相关专业","具有相应的教师资格证"]
[97,"扎赉特旗中等职业学校","全额拨款事业单位","蒙语文教师",2,null,null,2,"国家承认全日制普通高等院校本科及以上毕业学历","蒙语文及相关专业","具有相应的教师资格证"]
[98,"扎赉特旗中等职业学校","全额拨款事业单位","数学教师",2,1,null,1,"国家承认全日制普通高等院校本科及以上毕业学历","数学及相关专业","具有相应的教师资格证"]
[99,"扎赉特旗中等职业学校","全额拨款事业单位","建筑教师",1,null,1,null,"国家承认全日制普通高等院校本科及以上毕业学历","建筑类、土木类及相关专业","具有相应的教师资格证"]
[100,"扎赉特旗中等职业学校","全额拨款事业单位","畜牧教师",1,null,null,1,"国家承认全日制普通高等院校本科及以上毕业学历","畜牧、兽医及相关专业","具有相应的教师资格证"]
[101,"扎赉特旗中等职业学校","全额拨款事业单位","信息技术教师",1,null,null,1,"国家承认全日制普通高等院校本科及以上毕业学历","信息技术及相关专业","具有相应的教师资格证"]
[102,"扎赉特旗中等职业学校","全额拨款事业单位","护理学教师",4,null,3,1,"国家承认全日制普通高等院校本科及以上毕业学历","护理学、临床医学及相关专业","具有相应的教师资格证"]
[103,"扎赉特旗音德尔二中","全额拨款事业单位","数学教师",2,null,null,2,"国家承认全日制普通高等院校本科及以上毕业学历","数学及相关专业","具有相应的教师资格证"]
[104,"扎赉特旗音德尔二中","全额拨款事业单位","语文教师",2,2,null,null,"国家承认全日制普通高等院校本科及以上毕业学历","语文及相关专业","具有相应的教师资格证"]
[105,"扎赉特旗音德尔二中","全额拨款事业单位","思想政治教师",2,2,null,null,"国家承认全日制普通高等院校本科及以上毕业学历","思想政治教育及近近专业","具有相应的教师资格证"]
[106,"扎赉特旗音德尔二中","全额拨款事业单位","生物教师",1,null,null,1,"国家承认全日制普通高等院校本科及以上毕业学历","生物及相关专业","具有相应的教师资格证"]
[107,"扎赉特旗各蒙语授课学校","全额拨款事业单位","道德与法治教师（一）",6,3,3,null,"国家承认全日制普通高等院校本科及以上毕业学历","思想政治教育及相关专业","具有相应的教师资格证"]
[108,"扎赉特旗各蒙语授课学校","全额拨款事业单位","道德与法治教师（二）",7,4,3,null,"国家承认全日制普通高等院校本科及以上毕业学历","思想政治教育及相关专业","具有相应的教师资格证"]
[109,"扎赉特旗民族语言授课初中","全额拨款事业单位","语文教师",5,3,2,null,"国家承认全日制普通高等院校本科及以上毕业学历","语文及相关专业","具有相应的教师资格证"]
[110,"扎赉特旗民族语言授课初中","全额拨款事业单位","历史教师",9,4,5,null,"国家承认全日制普通高等院校本科及以上毕业学历","历史及相关专业","具有相应的教师资格证"]
[111,"扎赉特旗民族语言授课小学","全额拨款事业单位","语文教师",5,3,2,null,"国家承认全日制普通高等院校专科及以上毕业学历","语文及相关专业","具有相应的教师资格证"]
[112,"扎赉特旗民族语言授课小学","全额拨款事业单位","道德与法治教师（一）",6,3,3,null,"国家承认全日制普通高等院校专科及以上毕业学历","思想政治教育及相关专业","具有相应的教师资格证"]
[113,"扎赉特旗民族语言授课小学","全额拨款事业单位","道德与法治教师（二）",6,3,3,null,"国家承认全日制普通高等院校专科及以上毕业学历","思想政治教育及相关专业","具有相应的教师资格证"]
[114,"科右中旗小学","全额拨款事业单位","语文教师",9,5,4,null,"国家承认全日制普通高等院校专科及以上毕业学历","语文及相关专业","具有相应教师资格证书",null,"科右中旗巴彦呼舒第四小学、巴彦忙哈中心校、高力板小学、好腰苏木学校、义和道卜中心校、巴扎拉嘎中心校、坤都冷中心校"]
[115,"科右中旗小学","全额拨款事业单位","道德与法治教师（一）",10,5,5,null,"国家承认全日制普通高等院校专科及以上毕业学历","思想政治教育及相关专业","具有相应教师资格证书",null,"科右中旗巴彦呼舒第八小学、巴仁哲里木中心校、巴彦呼舒第四小学、巴彦淖尔中心校、巴彦呼舒第一小学、代钦塔拉中心校"]
[116,"科右中旗小学","全额拨款事业单位","道德与法治教师（二）",9,5,4,null,"国家承认全日制普通高等院校专科及以上毕业学历","思想政治教育及相关专业","具有相应教师资格证书",null,"科右中旗杜尔基中心校、高力板小学、好腰苏木学校、巴彦呼舒第七小学、吐列毛杜中心校、西日嘎中心校"]
[117,"科右中旗小学","全额拨款事业单位","道德与法治教师（三）",9,5,4,null,"国家承认全日制普通高等院校专科及以上毕业学历","思想政治教育及相关专业","具有相应教师资格证书",null,"科右中旗义和道卜中心校、巴仁太本中心校、巴扎拉嘎中心校、坤都冷中心校、准太本中心校、新佳木中心校、哈日诺尔中心校"]
[118,"科右中旗初中","全额拨款事业单位","道德与法治教师（一）",7,5,2,null,"国家承认全日制普通高等院校本科及以上毕业学历","思想政治教育及相关专业","具有相应教师资格证书",null,"科右中旗巴彦呼舒第六中学、好腰苏木学校"]
[119,"科右中旗初中","全额拨款事业单位","道德与法治教师（二）",7,5,2,null,"国家承认全日制普通高等院校本科及以上毕业学历","思想政治教育及相关专业","具有相应教师资格证书",null,"科右中旗巴彦呼舒第四中学、杜尔基中学吐列毛杜中学、高力板中学"]
[120,"科右中旗初中","全额拨款事业单位","语文教师",10,6,4,null,"国家承认全日制普通高等院校本科及以上毕业学历","语文及相关专业","具有相应教师资格证书",null,"科右中旗巴彦呼舒第四中学、巴彦呼舒第六中学、杜尔基中学、好腰苏木学校、吐列毛杜中学"]
[121,"科右中旗初中","全额拨款事业单位","历史教师（一）",7,5,2,null,"国家承认全日制普通高等院校本科及以上毕业学历","历史及相关专业","具有相应教师资格证书",null,"科右中旗巴彦呼舒第六中学"]
[122,"科右中旗初中","全额拨款事业单位","历史教师（二）",9,6,3,null,"国家承认全日制普通高等院校本科及以上毕业学历","历史及相关专业","具有相应教师资格证书",null,"科右中旗巴彦呼舒第四中学、杜尔基中学、高力板中学、好腰苏木学校、吐列毛杜中学"]
[123,"突泉县初中","全额拨款事业单位","语文教师",4,2,2,null,"国家承认全日制普通高等院校本科及以上毕业学历","语文及相关专业","具有相应教师资格证书"]
[124,"突泉县初中","全额拨款事业单位","数学教师",4,2,2,null,"国家承认全日制普通高等院校本科及以上毕业学历","数学及相关专业","具有相应教师资格证书"]
[125,"突泉县初中","全额拨款事业单位","道德与法治教师",5,3,2,null,"国家承认全日制普通高等院校本科及以上毕业学历","思想政治教育及相关专业","具有相应教师资格证书"]
[126,"突泉县初中","全额拨款事业单位","化学教师",3,2,1,null,"国家承认全日制普通高等院校本科及以上毕业学历","化学及相关专业","具有相应教师资格证书"]
[127,"突泉县初中","全额拨款事业单位","地理教师",2,2,null,null,"国家承认全日制普通高等院校本科及以上毕业学历","地理及相关专业","具有相应教师资格证书"]
[128,"突泉县初中","全额拨款事业单位","音乐教师",2,2,null,null,"国家承认全日制普通高等院校本科及以上毕业学历","音乐及相关专业","具有相应教师资格证书"]
[129,"突泉县初中","全额拨款事业单位","美术教师",2,2,null,null,"国家承认全日制普通高等院校本科及以上毕业学历","美术及相关专业","具有相应教师资格证书"]
[130,"突泉县小学","全额拨款事业单位","语文教师（一）",7,4,3,null,"国家承认全日制普通高等院校本科及以上毕业学历","语文及相关专业","具有相应教师资格证书"]
[131,"突泉县小学","全额拨款事业单位","语文教师（二）",8,4,4,null,"国家承认全日制普通高等院校本科及以上毕业学历","语文及相关专业","具有相应教师资格证书"]
[132,"突泉县小学","全额拨款事业单位","数学教师（一）",7,4,3,null,"国家承认全日制普通高等院校本科及以上毕业学历","数学及相关专业","具有相应教师资格证书"]
[133,"突泉县小学","全额拨款事业单位","数学教师（二）",{"$f":"SUM(F136:H136)","v":8},4,4,null,"国家承认全日制普通高等院校本科及以上毕业学历","数学及相关专业","具有相应教师资格证书"]
[134,"突泉县小学","全额拨款事业单位","体育教师",5,1,2,2,"国家承认全日制普通高等院校本科及以上毕业学历","体育及相关专业","具有相应教师资格证书"]
[135,"突泉县小学","全额拨款事业单位","道德与法治教师",4,2,2,null,"国家承认全日制普通高等院校本科及以上毕业学历","思想政治教育及相关专业","具有相应教师资格证书"]
[136,"突泉县小学","全额拨款事业单位","音乐教师",3,1,1,1,"国家承认全日制普通高等院校本科及以上毕业学历","音乐及相关专业","具有相应教师资格证书"]
[137,"突泉县小学","全额拨款事业单位","美术教师",3,1,1,1,"国家承认全日制普通高等院校本科及以上毕业学历","美术及相关专业","具有相应教师资格证书"]
[null,"合计",null,null,426,{"$f":"SUM(F4:F140)","v":235},{"$f":"SUM(G4:G140)","v":159},{"$f":"SUM(H4:H140)","v":32}]